bitfinex/quotes_ETHUSD_20260312
["timestamp","ask_amount","ask_price","bid_price","bid_amount"]
[1773313374810,0.002,2069.9,2069.7,1.32485864]
[1773313376299,0.002,2069.9,2069.8,1.20784616]
[1773313377016,0.002,2069.9,2069.8,2.5327048]
[1773313380503,0.002,2070.2,2069.9,1.32485864]
[1773313380821,0.002,2070.2,2070.0,1.20772946]
[1773313381129,0.002,2070.2,2070.1,1.32485864]
[1773313381804,0.002,2070.2,2070.0,1.20772946]
[1773313382005,0.002,2070.2,2070.0,2.5325881]
[1773313382220,1.30526269,2070.2,2069.9,1.32485864]
[1773313382527,0.002,2070.2,2069.9,1.32485864]
[1773313383017,0.002,2070.2,2070.0,1.20772946]
[1773313383212,0.002,2070.2,2070.0,2.5325881]
[1773313383621,0.002,2070.2,2070.1,1.32485864]
[1773313384431,1.30526269,2070.2,2069.8,1.32485864]
[1773313384591,1.30526269,2070.2,2069.7,2.532718]
[1773313385300,2.51289061,2070.2,2069.8,1.32485864]
[1773313385603,1.30526269,2070.2,2069.8,1.32485864]
[1773313385998,0.002,2070.2,2069.8,1.32485864]
[1773313386230,0.002,2070.3,2069.8,1.32485864]
[1773313387425,0.002,2070.3,2070.0,1.32485864]
[1773313389617,0.002,2070.3,2070.1,1.20767112]
[1773313389816,0.002,2070.3,2070.1,2.53252976]
[1773313392007,1.30526269,2070.3,2069.6,1.32485864]
[1773313392310,1.30526269,2070.3,2069.7,1.32485864]
[1773313394939,1.30326269,2070.2,2069.8,1.20784616]
[1773313395839,0.002,2070.3,2069.9,1.32485864]
[1773313396034,0.002,2070.5,2070.2,1.32485864]
[1773313397312,0.002,2070.5,2070.2,1.20760912]
[1773313397313,1.30526269,2070.5,2070.2,1.20760912]
[1773313397714,0.002,2070.3,2070.2,1.20760912]
[1773313398640,0.002,2070.3,2070.1,1.20762325]
[1773313398838,1.30526269,2070.3,2070.0,1.20768931]
[1773313399222,1.30326269,2070.2,2069.9,1.20877558]
[1773313399855,1.30326269,2070.2,2069.9,2.53363422]
[1773313400416,0.002,2070.3,2069.9,2.53363422]
[1773313401613,1.34019963,2070.3,2069.9,2.53363422]
[1773313405140,0.85138123,2070.5,2070.0,1.28600246]
[1773313405841,0.85138123,2070.5,2070.1,1.20767112]
[1773313406042,0.85138123,2070.5,2070.2,1.28600246]
[1773313406920,2.05881912,2070.5,2070.2,1.28600246]
[1773313407327,0.85138123,2070.5,2070.2,1.28600246]
[1773313407940,0.85138123,2070.5,2070.3,1.28600246]
[1773313407941,0.002,2070.5,2070.3,1.28600246]
[1773313410149,0.002,2070.5,2070.4,0.001]
[1773313412247,0.002,2070.5,2070.4,1.28700246]
[1773313413545,0.002,2070.5,2070.4,0.001]
[1773313415452,0.002,2070.5,2070.4,1.28700246]
[1773313415652,1.20930931,2070.8,2070.5,1.28600246]
[1773313415653,0.002,2070.8,2070.5,1.28600246]
[1773313416321,0.002,2070.8,2070.6,1.2073795]
[1773313416522,0.002,2070.8,2070.6,2.49338196]
[1773313417348,0.002,2070.8,2070.6,1.28600246]
[1773313420221,0.002,2070.8,2070.6,2.49338167]
[1773313420428,0.002,2070.8,2070.6,1.28600246]
[1773313422933,0.002,2070.8,2070.6,1.28700246]
[1773313423724,0.002,2070.8,2070.6,0.001]
[1773313424651,0.92822268,2070.8,2070.6,0.001]
[1773313424865,0.92822268,2070.8,2070.4,0.001]
[1773313425759,0.92585815,2070.6,2070.4,0.001]
[1773313425959,0.002,2070.8,2070.1,0.001]
[1773313425960,0.92585815,2070.4,2070.1,0.001]
[1773313426333,0.92585815,2070.4,2070.1,1.271011]
[1773313426533,2.13477802,2070.8,2070.2,1.270011]
[1773313427256,0.92548198,2070.7,2070.2,1.270011]
[1773313428470,0.92548198,2070.7,2070.3,1.20755446]
[1773313428760,0.002,2070.8,2070.4,1.270011]
[1773313429466,0.002,2070.8,2070.5,1.270011]
[1773313430647,0.002,2071.3,2070.7,1.35952862]
[1773313430996,1.2086838,2071.8,2071.3,1.35952862]
[1773313431165,0.92689989,2071.7,2071.3,1.35952862]
[1773313431468,0.92689989,2071.7,2071.1,1.35952862]
[1773313432666,1.20679667,2071.6,2071.1,2.56659434]
[1773313432868,1.20679667,2071.6,2071.2,1.35952862]
[1773313433066,0.92689989,2071.7,2071.2,1.35952862]
[1773313433367,2.1336534,2071.7,2071.2,1.35952862]
[1773313433742,0.92689989,2071.7,2071.2,1.35952862]
[1773313433942,2.13454955,2071.8,2071.2,1.35952862]
[1773313434878,2.13454955,2071.8,2071.3,1.35952862]
[1773313435092,0.92533531,2071.7,2071.3,1.35952862]
[1773313435588,0.002,2071.6,2071.3,1.35952862]
[1773313437575,0.002,2071.6,2071.2,1.20702538]
[1773313437576,0.9404969,2071.6,2071.1,1.35952862]
[1773313437969,0.64795411,2071.5,2070.9,1.35952862]
[1773313438171,0.9384969,2071.4,2070.9,1.35952862]
[1773313438368,0.93796577,2071.2,2070.7,1.35952862]
[1773313438883,2.14502423,2071.2,2070.7,2.56681101]
[1773313439096,2.14502423,2071.2,2070.7,1.35952862]
[1773313439984,2.14502423,2071.2,2070.7,2.56683689]
[1773313440286,2.14502423,2071.2,2070.7,2.56684532]
[1773313440679,2.14502423,2071.2,2070.7,1.35952862]
[1773313441274,0.93690197,2071.1,2070.7,1.35952862]
[1773313442693,0.93690197,2071.1,2070.7,2.56683188]
[1773313443194,2.14400855,2071.1,2070.7,2.56683188]
[1773313444264,2.14400855,2071.1,2070.7,1.35952862]
[1773313444991,0.93464396,2071.0,2070.6,1.35952862]
[1773313445285,2.14180964,2071.0,2070.6,1.35952862]
[1773313445492,0.93405909,2071.2,2070.7,1.35952862]
[1773313445679,7.38343212,2071.6,2070.7,1.35952862]
[1773313445877,2.14091402,2071.5,2070.7,1.35952862]
[1773313446193,0.93405909,2071.4,2070.7,1.35952862]
[1773313446689,0.93346761,2071.3,2070.5,2.56692619]
[1773313447065,0.93346761,2071.3,2070.6,1.35952862]
[1773313447265,0.93546761,2071.6,2070.7,1.20732119]
[1773313447460,0.93546761,2071.6,2070.8,1.35952862]
[1773313447461,0.93285315,2071.4,2070.8,1.35952862]
[1773313447860,0.93285315,2071.4,2070.9,0.001]
[1773313449788,0.93162339,2071.2,2070.9,0.001]
[1773313451789,2.13749515,2071.1,2070.9,0.001]
[1773313451992,0.93040713,2071.0,2070.9,0.001]
[1773313452570,0.93040713,2071.0,2070.6,0.001]
[1773313453771,0.93040713,2071.0,2070.4,0.001]
[1773313454075,0.92817707,2070.8,2070.4,1.36052862]
[1773313454693,0.92817707,2070.8,2070.2,1.35952862]
[1773313455268,1.61974397,2070.7,2070.1,0.001]
[1773313455469,0.92606916,2070.6,2070.1,0.001]
[1773313455982,2.13350697,2070.5,2070.1,0.001]
[1773313456793,2.13350697,2070.5,2070.1,1.36052862]
[1773313457292,0.92606916,2070.5,2070.1,1.36052862]
[1773313457975,1.20749613,2070.4,2070.1,1.36052862]
[1773313458502,2.13355478,2070.5,2070.1,1.36052862]
[1773313459209,0.93751372,2070.4,2070.1,0.001]
[1773313459675,0.93644131,2070.3,2070.1,0.001]
[1773313461020,0.93575108,2071.2,2070.2,1.3137183]
[1773313461207,0.93575108,2071.0,2070.3,1.3137183]
[1773313462204,1.20708802,2071.1,2070.3,1.3137183]
[1773313462708,1.20708802,2071.1,2070.5,1.3137183]
[1773313464478,2.13841013,2071.1,2070.5,1.3137183]
[1773313464682,2.13841013,2071.1,2070.6,1.2073795]
[1773313464905,2.13841013,2071.1,2070.6,2.5210978]
[1773313465084,2.13841013,2071.1,2070.7,1.3137183]
[1773313468203,0.92798183,2071.0,2070.5,2.52112812]
[1773313469190,2.13517349,2071.0,2070.5,2.52112812]
[1773313469502,1.20719166,2071.0,2070.6,1.3137183]
[1773313469708,2.1329478,2071.0,2070.6,1.3137183]
[1773313471782,1.20719166,2071.0,2070.7,1.3137183]
[1773313473716,0.002,2070.8,2070.7,1.3137183]
[1773313474416,0.92330828,2070.8,2070.4,1.3137183]
[1773313475118,0.002,2070.8,2070.4,1.3137183]
[1773313475886,0.002,2070.8,2070.4,2.52119641]
[1773313476101,0.002,2070.8,2070.4,1.20747811]
[1773313476412,0.002,2070.8,2070.5,1.3137183]
[1773313478014,1.20926289,2070.8,2070.5,1.3137183]
[1773313482289,0.91235399,2070.7,2070.3,1.3147183]
[1773313482497,0.91235399,2070.7,2070.3,2.52227092]
[1773313483012,0.91235399,2070.7,2070.3,1.20855262]
[1773313483226,0.91235399,2070.7,2070.4,1.3137183]
[1773313483688,0.91240434,2070.8,2070.4,1.3137183]
[1773313486327,2.11971244,2070.8,2070.6,0.001]
[1773313488323,0.90586522,2070.7,2070.6,0.001]
[1773313488829,2.11318641,2070.7,2070.6,0.001]
[1773313489332,1.20732119,2070.7,2070.6,0.001]
[1773313490640,0.90272532,2070.7,2070.6,0.001]
[1773313490848,0.90272532,2070.7,2070.3,0.001]
[1773313491085,0.90172532,2070.6,2070.3,0.001]
[1773313491710,0.90064929,2070.4,2070.1,0.001]
[1773313492439,0.002,2070.8,2069.9,1.23919112]
[1773313492440,0.89954477,2070.2,2069.9,0.001]
[1773313493042,2.10721589,2070.1,2069.9,0.001]
[1773313493634,0.89845477,2070.6,2070.1,1.23819112]
[1773313494014,0.89845477,2070.5,2070.1,1.23819112]
[1773313495141,1.20749613,2070.4,2070.1,1.23819112]
[1773313495936,0.002,2070.8,2070.3,1.23819112]
[1773313497254,5.72498158,2071.3,2070.6,1.23819112]
[1773313497255,0.002,2071.3,2070.6,1.23819112]
[1773313497419,0.002,2071.3,2070.8,1.23819112]
[1773313499353,0.002,2071.3,2071.0,1.23819112]
[1773313500254,0.002,2071.1,2071.0,1.23819112]
[1773313500623,0.002,2071.3,2071.0,1.23819112]
[1773313501425,0.002,2071.3,2071.2,1.23819112]
[1773313506850,0.002,2071.3,2071.2,2.44522086]
[1773313507051,0.002,2071.3,2071.2,1.20702974]
[1773313507256,0.88601795,2071.0,2070.6,1.23919112]
[1773313507752,0.8838876,2070.8,2070.4,0.001]
[1773313508546,1.20732119,2070.7,2070.4,0.001]
[1773313508937,2.09012744,2070.7,2070.4,0.001]
[1773313509619,1.20732119,2070.7,2070.4,0.001]
[1773313512155,1.20732119,2070.7,2070.6,0.001]
[1773313514991,1.20726289,2070.8,2070.6,0.001]
[1773313518785,2.06381863,2070.8,2070.6,0.001]
[1773313523600,1.31141751,2070.7,2070.4,0.001]
[1773313524068,1.85542273,2070.8,2070.4,0.001]
[1773313524069,2.51885532,2070.5,2070.4,0.001]
[1773313525795,1.20743781,2070.5,2070.4,0.001]
[1773313525996,2.51885532,2070.5,2070.4,0.001]
[1773313526204,1.20743781,2070.5,2070.4,0.001]
[1773313528714,0.002,2070.6,2070.4,1.31766295]
[1773313530696,1.31341751,2070.6,2070.3,0.001]
[1773313532106,1.31141751,2070.5,2070.3,0.001]
[1773313532486,1.20749613,2070.4,2070.3,0.001]
[1773313535813,2.51891364,2070.4,2070.3,0.001]
[1773313536012,2.47061379,2070.4,2070.3,0.001]
[1773313537305,1.20748579,2070.5,2070.3,0.001]
[1773313537702,2.52079974,2070.6,2070.5,0.001]
[1773313543094,2.52079974,2070.6,2070.3,0.001]
[1773313543412,2.52079974,2070.6,2070.0,0.001]
[1773313543413,1.26237697,2070.3,2070.0,0.001]
[1773313543646,1.26237697,2070.1,2069.8,0.001]
[1773313545395,1.20772946,2070.0,2069.8,0.001]
[1773313546518,2.47010643,2070.0,2069.8,0.001]
[1773313548005,1.26237697,2069.9,2069.8,0.001]
[1773313549242,1.20772946,2070.0,2069.8,0.001]
[1773313549934,2.47010643,2070.0,2069.8,0.001]
[1773313554728,2.47010643,2070.0,2069.4,0.001]
[1773313554729,0.64828211,2069.8,2069.4,0.001]
[1773313554921,1.3562218,2069.7,2069.4,0.001]
[1773313555729,1.3562218,2069.5,2069.2,0.09678424]
[1773313555934,1.3562218,2069.9,2069.2,0.09678424]
[1773313556231,1.3562218,2069.8,2069.2,1.30496563]
[1773313556424,1.3562218,2069.8,2069.3,0.09678424]
[1773313556619,2.56412632,2069.7,2069.3,0.09678424]
[1773313559718,1.3562218,2069.6,2069.3,0.09678424]
[1773313560322,1.3562218,2069.6,2069.1,0.10439899]
[1773313560812,1.3562218,2069.6,2069.2,0.1049594]
[1773313562026,2.56406796,2069.8,2069.3,0.10648948]
[1773313562621,1.3562218,2069.7,2069.3,0.10648948]
[1773313563825,1.3562218,2069.7,2069.1,0.11045339]
[1773313564027,1.3562218,2069.5,2069.1,0.11045339]
[1773313564725,1.20796289,2069.6,2069.3,0.11089187]
[1773313564929,1.20796289,2069.6,2069.3,0.11189187]
[1773313568035,0.002,2069.8,2069.5,0.11501814]
[1773313568237,0.002,2069.8,2069.6,0.11501814]
[1773313570342,0.002,2069.8,2069.7,0.1176171]
[1773313575950,0.002,2070.0,2069.8,0.13828066]
[1773313576151,1.20958486,2070.3,2069.8,0.13628066]
[1773313576646,2.55999344,2070.3,2069.8,0.13628066]
[1773313577468,1.35240858,2070.3,2069.8,0.13628066]
[1773313577830,2.55996323,2070.3,2069.8,0.13628066]
[1773313578059,1.35240858,2070.3,2070.0,0.13847651]
[1773313578351,0.002,2070.1,2070.0,0.13847651]
[1773313581958,0.002,2070.1,2069.8,1.35251155]
[1773313582126,0.002,2070.1,2069.8,0.14470975]
[1773313582329,0.002,2070.1,2069.8,1.35252893]
[1773313582526,0.002,2070.1,2069.9,0.14560556]
[1773313585368,1.4042275,2070.1,2069.5,0.14828927]
[1773313585734,1.4042275,2070.1,2069.5,1.35630414]
[1773313586137,1.4042275,2070.1,2069.6,0.14809678]
[1773313586765,1.4042275,2070.1,2069.7,0.14889699]
[1773313586965,0.002,2070.1,2069.9,0.14889699]
[1773313587463,0.002,2070.1,2069.9,1.20774515]
[1773313587634,0.002,2070.1,2070.0,0.14965489]
[1773313587968,1.4042275,2070.1,2069.8,0.14965489]
[1773313588941,1.4042275,2070.1,2069.6,2.50239308]
[1773313589285,1.4042275,2070.1,2069.5,0.001]
[1773313589442,1.4022275,2069.9,2069.5,1.36012673]
[1773313590774,1.4022275,2069.9,2069.8,0.001]
[1773313591569,2.61001531,2069.9,2069.8,0.001]
[1773313594765,2.61001531,2069.9,2069.5,0.15210696]
[1773313594958,1.4022275,2069.8,2069.5,0.15210696]
[1773313595272,1.4022275,2069.8,2069.5,0.001]
[1773313595781,1.4022275,2069.7,2069.5,0.001]
[1773313597977,2.61012674,2069.8,2069.5,0.001]
[1773313598685,1.20969558,2070.1,2069.6,0.15763148]
[1773313598846,1.20968353,2070.1,2069.6,0.15763148]
[1773313599569,1.20968353,2070.1,2069.7,0.15813875]
[1773313600562,0.002,2070.1,2069.8,0.15864648]
[1773313601380,0.002,2070.1,2069.9,0.15864648]
[1773313602963,0.002,2070.1,2069.9,1.20876718]
[1773313603160,0.002,2070.1,2070.0,0.15958651]
[1773313606183,0.002,2070.1,2069.9,0.001]
[1773313606391,1.43170183,2070.1,2069.9,0.001]
[1773313607192,1.43170183,2070.1,2069.5,0.001]
[1773313607387,1.42970183,2069.9,2069.5,0.001]
[1773313607565,1.42970183,2069.9,2069.6,0.07783852]
[1773313607890,1.20772946,2070.0,2069.7,0.07783852]
[1773313607891,1.42970183,2070.0,2069.7,0.07783852]
[1773313608272,1.42970183,2070.0,2069.5,0.07883852]
[1773313609496,1.42970183,2070.0,2069.5,1.2868596]
[1773313609497,1.20778781,2069.9,2069.5,1.2868596]
[1773313609700,1.20778781,2069.9,2069.6,0.07833317]
[1773313612195,1.42970183,2069.9,2069.6,0.07833317]
[1773313614396,2.63751714,2069.9,2069.6,0.07833317]
[1773313616206,1.42970183,2069.9,2069.6,0.07833317]
[1773313616497,2.63749718,2069.9,2069.5,1.29018934]
[1773313617478,2.63749718,2069.9,2069.5,0.08219599]
[1773313618098,2.63749718,2069.9,2069.7,0.001]
[1773313618600,1.42970183,2069.8,2069.7,0.001]
[1773313620798,0.002,2069.9,2069.7,0.001]
[1773313622307,0.002,2070.1,2069.9,0.09086969]
[1773313622834,0.002,2070.1,2069.9,1.29865724]
[1773313624022,0.002,2070.1,2069.9,0.09086969]
[1773313627411,0.002,2070.3,2070.0,0.10045483]
[1773313629018,0.002,2070.3,2069.8,1.20780056]
[1773313629019,1.42221092,2070.3,2069.8,1.20780056]
[1773313629217,1.42021092,2070.2,2069.8,1.20780056]
[1773313629526,1.42021092,2070.2,2069.9,0.10045764]
[1773313631432,1.42021092,2070.2,2069.9,1.3082146]
[1773313631905,1.42021092,2070.2,2069.9,1.20775696]
[1773313632308,1.42021092,2070.2,2070.1,0.001]
[1773313633237,1.42221092,2070.2,2070.1,0.001]
[1773313637512,0.002,2070.2,2070.1,0.001]
[1773313643847,1.42221092,2070.2,2069.9,0.001]
[1773313644225,1.42221092,2070.2,2069.9,1.20877982]
[1773313644424,1.42221092,2070.2,2069.9,1.29894446]
[1773313645654,0.002,2070.0,2069.9,1.29894446]
[1773313650160,1.42221092,2070.2,2069.9,1.29894446]
[1773313650161,1.34218107,2070.3,2070.0,1.42639465]
[1773313650329,1.34218107,2070.3,2069.9,2.63517447]
[1773313650629,2.54973703,2070.3,2069.9,2.63517447]
[1773313655459,2.54974856,2070.3,2069.9,2.63517447]
[1773313655647,1.34218107,2070.3,2069.9,2.63517447]
[1773313655955,2.54974224,2070.3,2069.9,2.63517447]
[1773313657760,1.34218107,2070.3,2069.9,2.63517447]
[1773313657939,0.002,2070.6,2070.4,1.42639465]
[1773313658269,2.54944847,2070.8,2070.4,1.42639465]
[1773313658776,1.34218107,2070.8,2070.4,1.42639465]
[1773313658937,0.002,2070.8,2070.4,1.42639465]
[1773313659956,0.002,2070.8,2070.5,2.63383246]
[1773313661081,0.002,2070.8,2070.5,3.28224764]
[1773313661658,0.002,2070.8,2070.5,3.28169657]
[1773313663580,1.48571243,2070.8,2070.5,3.28169657]
[1773313667083,1.48571243,2070.8,2070.5,1.85530192]
[1773313667284,1.48571243,2070.8,2070.5,3.33843679]
[1773313667581,1.48371243,2071.0,2070.6,1.48313487]
[1773313668667,2.69091702,2070.9,2070.6,1.48313487]
[1773313668867,2.69091702,2070.9,2070.5,3.33843679]
[1773313669070,1.48371243,2070.9,2070.5,3.33843679]
[1773313669678,2.69094596,2070.9,2070.5,3.33843679]
[1773313670016,2.69094596,2070.9,2070.1,3.33963267]
[1773313670017,1.48371243,2070.8,2070.1,3.33963267]
[1773313670169,1.20723353,2070.9,2070.1,3.33963267]
[1773313670170,1.39401987,2070.6,2070.1,0.001]
[1773313670798,1.39401987,2070.6,2069.9,0.001]
[1773313671000,1.39401987,2070.6,2070.1,0.001]
[1773313671321,1.39401987,2070.4,2070.1,0.001]
[1773313673496,1.39401987,2070.2,2070.1,0.001]
[1773313674193,1.39401987,2070.3,2070.1,0.001]
[1773313675500,1.39401987,2070.2,2070.1,0.001]
[1773313675701,1.39401987,2070.2,2069.8,0.001]
[1773313677672,1.39401987,2070.0,2069.8,0.001]
[1773313679681,2.60180768,2069.9,2069.8,0.001]
[1773313680572,1.39401987,2069.8,2069.5,0.001]
[1773313680771,1.39401987,2069.8,2069.3,1.17710753]
[1773313681678,1.39401987,2069.6,2069.3,1.17710753]
[1773313683788,2.60198276,2069.6,2069.5,0.001]
[1773313685004,5.47881819,2070.0,2069.5,1.43465013]
[1773313685005,1.39401987,2070.0,2069.5,1.43465013]
[1773313685703,1.39401987,2070.0,2069.6,1.20796289]
[1773313686003,1.39401987,2069.9,2069.5,2.6426321]
[1773313686205,1.39401987,2069.9,2069.5,0.001]
[1773313686580,1.39401987,2069.8,2069.5,0.001]
[1773313687902,1.39401987,2069.6,2069.5,0.001]
[1773313688891,1.39401987,2069.6,2069.3,1.17710753]
[1773313689278,1.39401987,2069.6,2069.3,0.001]
[1773313689976,1.39401987,2069.4,2069.3,0.001]
[1773313693607,2.6020995,2069.4,2069.3,0.001]
[1773313694116,0.64786411,2069.9,2069.3,0.001]
[1773313694117,2.60202518,2069.6,2069.3,0.001]
[1773313694410,1.207905,2069.7,2069.3,1.43465013]
[1773313694590,2.60192487,2069.7,2069.3,1.43465013]
[1773313695794,2.60192487,2069.7,2069.5,0.001]
[1773313696409,0.002,2069.6,2069.5,0.001]
[1773313697508,1.39601987,2069.6,2069.3,0.001]
[1773313698320,1.20999729,2069.6,2069.3,0.001]
[1773313698523,1.39401987,2069.5,2069.3,0.001]
[1773313700625,2.61441468,2069.4,2069.3,0.001]
[1773313700805,1.40633505,2069.4,2069.3,0.001]
[1773313701538,0.64986411,2069.9,2069.3,0.001]
[1773313701539,0.002,2070.8,2069.9,1.46081641]
[1773313701694,0.002,2071.1,2070.8,1.46081641]
[1773313701898,1.20694718,2071.4,2071.0,1.46081641]
[1773313702432,6.23585247,2071.5,2071.0,1.46081641]
[1773313702433,0.006,2071.3,2071.0,1.46081641]
[1773313703004,0.006,2071.3,2071.0,2.66796156]
[1773313703227,0.006,2071.3,2071.0,1.46081641]
[1773313704311,0.002,2071.3,2071.0,2.66795762]
[1773313704626,0.002,2071.3,2071.1,1.46081641]
[1773313705303,0.004,2071.2,2070.9,1.46081641]
[1773313705510,0.002,2071.3,2071.0,1.46081641]
[1773313706418,0.002,2071.7,2071.3,1.46081641]
[1773313707026,0.002,2072.0,2071.3,1.46081641]
[1773313707329,3.61974567,2072.7,2071.7,1.24081641]
[1773313707330,1.40633505,2072.4,2071.7,1.24081641]
[1773313709203,1.20638903,2072.3,2071.8,2.52056636]
[1773313709420,1.40633505,2072.2,2071.6,2.52022484]
[1773313710027,1.40633505,2072.2,2071.7,1.31345849]
[1773313710427,1.40633505,2072.2,2071.4,2.52037168]
[1773313710823,1.40633505,2072.0,2071.2,1.31301013]
[1773313711037,1.40633505,2072.0,2070.9,1.31301013]
[1773313711207,1.40633505,2071.7,2070.7,1.31301013]
[1773313713117,1.40633505,2071.5,2070.8,1.20726289]
[1773313714137,1.40633505,2071.5,2070.7,2.52032749]
[1773313715614,2.61324824,2071.4,2070.8,1.31066935]
[1773313717635,1.40633505,2071.4,2070.9,1.20720459]
[1773313717841,2.61325623,2071.4,2070.9,1.20720459]
[1773313718042,2.61325623,2071.4,2070.9,2.51689063]
[1773313718223,2.61325473,2071.4,2070.9,2.51689063]
[1773313718422,1.20690412,2071.5,2071.0,1.30968604]
[1773313719028,1.40633505,2071.4,2070.7,1.61910845]
[1773313719231,1.40633505,2071.4,2070.7,1.20729902]
[1773313719414,1.40633505,2071.4,2070.7,2.5159763]
[1773313719614,2.61313484,2071.6,2070.8,1.30867728]
[1773313719817,1.40633505,2071.7,2071.2,1.30867728]
[1773313720020,2.6129971,2071.9,2071.2,1.30867728]
[1773313720242,2.61297599,2071.9,2071.2,1.30867728]
[1773313720441,1.40633505,2071.9,2071.4,1.30815473]
[1773313720942,0.002,2071.5,2071.4,1.30815473]
[1773313721142,1.40633505,2071.9,2071.4,1.30815473]
[1773313721540,2.61297238,2071.9,2071.4,2.51502631]
[1773313721936,0.002,2071.7,2071.4,2.51502631]
[1773313723646,1.3951543,2071.7,2071.2,1.30751793]
[1773313723874,1.3951543,2071.7,2071.0,4.82841678]
[1773313723875,1.3951543,2071.7,2071.0,2.51465042]
[1773313724825,1.3951543,2071.7,2071.1,1.30828794]
[1773313726143,1.3931543,2071.6,2071.2,1.20702974]
[1773313727152,1.3931543,2071.6,2071.0,4.82853631]
[1773313728928,1.3931543,2071.5,2071.0,4.82853631]
[1773313729429,1.3931543,2071.5,2071.0,2.51843827]
[1773313730225,1.3931543,2071.5,2071.0,1.31129197]
[1773313730426,1.3931543,2071.5,2070.9,0.001]
[1773313730930,1.47647869,2071.3,2070.6,0.001]
[1773313733056,1.47647869,2071.1,2070.6,0.001]
[1773313733256,4.8280732,2071.3,2070.7,1.40411572]
[1773313733257,1.47647869,2071.3,2070.7,1.40411572]
[1773313733558,2.68345051,2071.3,2070.7,1.40411572]
[1773313734668,1.47647869,2071.3,2070.8,0.001]
[1773313734829,2.68346351,2071.3,2070.8,0.001]
[1773313735151,2.68346351,2071.3,2070.8,1.20826289]
[1773313735660,1.47647869,2071.3,2070.8,2.61237861]
[1773313737052,1.47647869,2071.3,2070.9,1.40411572]
[1773313737245,1.47647869,2071.3,2071.0,1.2071463]
[1773313737446,1.47647869,2071.2,2070.6,0.001]
[1773313737652,1.47647869,2071.2,2070.7,2.61143691]
[1773313737950,4.82784106,2071.4,2070.8,1.40411572]
[1773313737951,2.68342135,2071.4,2070.8,1.40411572]
[1773313738265,0.002,2071.5,2070.9,1.40411572]
[1773313739553,0.002,2071.5,2071.0,2.61126202]
[1773313740151,0.002,2071.5,2071.1,1.40411572]
[1773313741966,0.002,2071.5,2071.2,1.20702974]
[1773313742268,0.002,2071.5,2071.2,2.61114546]
[1773313744171,0.002,2071.5,2071.2,1.40411572]
[1773313744376,0.002,2071.5,2071.1,1.20703595]
[1773313744841,0.002,2071.5,2071.1,2.61115167]
[1773313745041,1.47847869,2072.0,2071.3,1.40411572]
[1773313745365,2.6850446,2072.0,2071.3,1.40411572]
[1773313745963,1.47847869,2072.0,2071.3,1.40411572]
[1773313746271,1.47647869,2071.9,2071.5,1.40411572]
[1773313746493,0.002,2072.0,2071.5,1.40411572]
[1773313746844,2.68504283,2072.0,2071.5,1.40411572]
[1773313747364,1.47847869,2072.0,2071.5,1.40411572]
[1773313747937,0.002,2071.8,2071.5,1.40411572]
[1773313748454,0.002,2071.8,2071.6,1.20679667]
[1773313749376,0.002,2071.8,2071.6,2.61091239]
[1773313749663,0.002,2072.0,2071.7,1.40411572]
[1773313750569,0.002,2072.0,2071.9,1.40411572]
[1773313751551,1.47847869,2072.0,2071.7,1.20669333]
[1773313752152,1.47847869,2072.0,2071.8,1.40411572]
[1773313752153,0.002,2072.0,2071.8,1.40411572]
[1773313752553,0.002,2072.0,2071.9,1.20662194]
[1773313752759,0.002,2072.0,2071.9,2.61073766]
[1773313753579,0.002,2072.3,2072.0,1.40411572]
[1773313754651,0.002,2072.3,2072.0,2.61062525]
[1773313755686,1.47847869,2072.3,2071.8,1.40411572]
[1773313755893,1.47847869,2072.3,2071.6,4.9848845]
[1773313756771,1.20644725,2072.2,2071.6,4.9848845]
[1773313756961,1.47647869,2072.1,2071.6,4.9848845]
[1773313758084,1.47647869,2072.1,2071.6,4.9838845]
[1773313759396,1.47647869,2072.0,2071.6,4.9838845]
[1773313760998,0.002,2071.9,2071.6,4.9838845]
[1773313762104,0.002,2071.9,2071.5,1.20681958]
[1773313762105,1.45419331,2071.9,2071.5,1.20681958]
[1773313762304,1.45419331,2071.9,2071.4,2.68184195]
[1773313762492,1.45419331,2071.9,2071.4,1.2068787]
[1773313763674,1.45419331,2071.9,2071.5,1.47496325]
[1773313764905,1.45219331,2071.8,2071.4,1.2068787]
[1773313765712,2.65887817,2071.8,2071.4,1.2068787]
[1773313765877,1.45219331,2071.7,2071.4,1.2068787]
[1773313766970,2.6608622,2071.9,2071.4,1.2068787]
[1773313767197,2.6608622,2071.9,2071.5,1.47496325]
[1773313769593,1.45219331,2071.8,2071.5,1.47496325]
[1773313769797,1.45219331,2071.8,2071.4,1.20686864]
[1773313770121,1.45219331,2071.8,2071.4,2.68183189]
[1773313772089,2.65887847,2071.8,2071.4,2.68183189]
[1773313772430,1.45219331,2071.7,2071.4,2.68183189]
[1773313773238,1.45219331,2071.6,2071.0,1.20813925]
[1773313773531,1.45219331,2071.7,2071.1,1.47496325]
[1773313773820,1.45219331,2071.6,2071.2,1.47496325]
[1773313774024,1.45219331,2071.6,2071.2,1.47596325]
[1773313776235,1.45219331,2071.5,2071.2,2.6829692]
[1773313776660,0.002,2071.9,2071.5,1.47496325]
[1773313776854,2.6608227,2071.9,2071.5,1.47496325]
[1773313777164,1.45419331,2071.9,2071.5,1.47496325]
[1773313777365,2.66083112,2071.9,2071.5,1.47496325]
[1773313777564,1.45219331,2071.8,2071.3,3.85496325]
[1773313779330,1.45219331,2071.7,2071.4,1.20691319]
[1773313782361,1.45219331,2071.7,2071.4,2.68187644]
[1773313782528,2.66085402,2071.9,2071.4,2.68187644]
[1773313782931,2.66085402,2071.9,2071.5,1.47496325]
[1773313782932,0.002,2071.9,2071.5,1.47496325]
[1773313783262,1.45219331,2071.8,2071.4,2.66667711]
[1773313783868,1.45219331,2071.8,2071.5,1.21687989]
[1773313784373,1.45219331,2071.8,2071.5,1.20682961]
[1773313784957,1.40941295,2071.7,2071.4,1.20687453]
[1773313785145,1.40941295,2071.7,2071.3,3.58693036]
[1773313786468,1.40941295,2071.7,2071.6,0.001]
[1773313789239,1.40941295,2071.7,2071.4,0.001]
[1773313789240,1.40941295,2071.6,2071.4,0.001]
[1773313791288,2.6602421,2071.5,2071.4,0.001]
[1773313796493,6.28036627,2071.7,2071.4,0.001]
[1773313796696,1.45338717,2071.6,2071.4,0.001]
[1773313798900,2.6602421,2071.5,2071.4,0.001]